fUSD/lending_fUSD_20241224
["ID","MTS","AMOUNT","RATE_DAILY","PERIOD"]
[346486363,1735005047134,-500.0,0.00014246,2]
[346486364,1735005047143,-1121.17,0.00014246,2]
[346486365,1735005047152,-1170.74,0.00014246,2]
[346486366,1735005047162,-500.0,0.00014246,2]
[346486367,1735005047171,-525.53,0.00014246,2]
[346486368,1735005047181,-500.0,0.00014246,2]
[346486369,1735005047191,-500.0,0.00014246,2]
[346486370,1735005047200,-500.0,0.00014246,2]
[346486371,1735005047209,-500.0,0.00014246,2]
[346486372,1735005047219,-500.0,0.00014246,2]
[346486373,1735005047228,-500.0,0.00014246,2]
[346486374,1735005047238,-821.89,0.00014246,2]
[346486375,1735005047247,-1429.97,0.00014246,2]
[346486376,1735005047256,-626.94,0.00014246,2]
[346486377,1735005047266,-500.0,0.00014246,2]
[346486378,1735005047275,-669.0,0.00014246,2]
[346486379,1735005047285,-502.88,0.00014246,2]
[346486380,1735005047294,-500.0,0.00014246,2]
[346486381,1735005047304,-553.16,0.00014246,2]
[346486382,1735005047314,-500.0,0.00014246,2]
[346486383,1735005047323,-1216.96,0.00014246,2]
[346486384,1735005047332,-1105.12,0.00014246,2]
[346486385,1735005047342,-500.0,0.00014246,2]
[346486386,1735005047352,-517.42,0.00014246,2]
[346486387,1735005047361,-987.19,0.00014246,2]
[346486388,1735005047370,-500.0,0.00014246,2]
[346486389,1735005047379,-500.0,0.00014246,2]
[346486390,1735005047389,-517.22,0.00014246,2]
[346486391,1735005047399,-500.0,0.00014246,2]
[346486392,1735005047411,-500.0,0.00014246,2]
[346486393,1735005047420,-500.0,0.00014246,2]
[346486394,1735005047429,-657.7,0.00014246,2]
[346486395,1735005047439,-500.0,0.00014246,2]
[346486396,1735005047448,-559.52,0.00014246,2]
[346486397,1735005047458,-530.86,0.00014246,2]
[346486398,1735005047467,-704.14,0.00014246,2]
[346486399,1735005047478,-663.41,0.00014246,2]
[346486400,1735005047487,-642.7,0.00014246,2]
[346486401,1735005047497,-500.0,0.00014246,2]
[346486402,1735005047506,-684.17576535,0.00014246,2]
[346486403,1735005047528,-468.94423465,0.00014246,2]
[346486404,1735005047537,-1169.33,0.00014246,2]
[346486405,1735005047547,-500.0,0.00014246,2]
[346486406,1735005047556,-500.0,0.00014246,2]
[346486407,1735005047565,-530.3,0.00014246,2]
[346486408,1735005047574,-504.35,0.00014246,2]
[346486409,1735005047583,-206.10451381,0.00014246,2]
[346486410,1735005047596,-293.89548619,0.00014246,2]
[346486411,1735005047605,-500.0,0.00014246,2]
[346486412,1735005047614,-368.73999692,0.00014246,2]
[346486413,1735005050401,-500.0,0.00013698,2]
[346486414,1735005050411,-500.0,0.00013698,2]
[346486415,1735005050421,-500.0,0.00013698,2]
[346486416,1735005050431,-500.0,0.00013698,2]
[346486417,1735005050440,-4018.51999887,0.00013794,2]
[346486418,1735005050470,-757.25070126,0.00013794,2]
[346486419,1735005050485,-305.47931785,0.00013794,2]
[346486420,1735005050497,-509.55688897,0.00013794,2]
[346486421,1735005050509,-312.27156458,0.00013794,2]
[346486422,1735005050520,-519.07829482,0.00013794,2]
[346486423,1735005050532,-446.00950668,0.00013794,2]
[346486424,1735005050543,-2725.83372697,0.00013794,2]
[346486425,1735005050553,-500.0,0.00013972,2]
[346486426,1735005050563,-500.0,0.00013972,2]
[346486427,1735005050572,-500.0,0.00013972,2]
[346486428,1735005050582,-500.0,0.00013972,2]
[346486429,1735005050591,-712.426733,0.00013976,2]
[346486430,1735005050603,-185.73000308,0.00014246,2]
[346486431,1735005050613,-500.0,0.00014246,2]
[346486432,1735005050623,-402.0752598,0.00014246,2]
[346486433,1735005050648,-287.2047402,0.00014246,2]
[346486434,1735005050658,-665.62,0.00014246,2]
[346486435,1735005050668,-829.86,0.00014246,2]
[346486436,1735005050679,-995.0,0.00014246,2]
[346486437,1735005050688,-746.22,0.00014246,2]
[346486438,1735005050698,-1153.92412005,0.00014246,2]
[346486439,1735005050710,-104.80587995,0.00014246,2]
[346486440,1735005050719,-407.10015707,0.00014246,2]
[346486441,1735005050732,-145.26304879,0.00014246,2]
[346486442,1735005050741,-304.48695408,0.00014246,2]
[346486443,1735005051038,-483.84594979,0.00013698,2]
[346486444,1735005051047,-15.53405066,0.00013698,2]
[346486445,1735005051059,-484.46594934,0.00013698,2]
[346486446,1735005051068,-1181.98,0.00013698,2]
[346486447,1735005051077,-236.13400352,0.00013698,2]
[346486448,1735005051163,-263.86599648,0.00013698,2]
[346486449,1735005051173,-244.67420184,0.00013698,2]
[346486450,1735005051185,-255.32579816,0.00013698,2]
[346486451,1735005051195,-318.11,0.00013972,2]
[346486452,1735005051204,-1181.98,0.00013972,2]
[346486453,1735005051214,-558.51139956,0.00013972,2]
[346486454,1735005051224,-195.51304592,0.00014246,2]
[346486455,1735005051233,-672.16364922,0.00014246,2]
[346486456,1735005051245,-45.21635078,0.00014246,2]
[346486457,1735005051254,-1336.69,0.00014246,2]
[346486458,1735005051264,-892.09,0.00014246,2]
[346486459,1735005051273,-500.0,0.00014246,2]
[346486460,1735005051283,-500.0,0.00014246,2]
[346486461,1735005051292,-500.0,0.00014246,2]
[346486462,1735005051302,-21.15898823,0.00014246,2]
[346486463,1735005051313,-478.84101177,0.00014246,2]
[346486464,1735005051323,-658.31,0.00014246,2]
[346486465,1735005051332,-500.0,0.00014246,2]
[346486466,1735005051341,-1015.51,0.00014246,2]
[346486467,1735005051350,-500.0,0.00014246,2]
[346486468,1735005051359,-1050.18,0.00014246,2]
[346486469,1735005051368,-724.39379372,0.00014246,2]
[346486470,1735005051380,-439.60897984,0.00014246,2]
[346486471,1735005051391,-46.70722644,0.00014246,2]
[346486472,1735005051400,-500.0,0.00014246,2]
[346486473,1735005051410,-1562.74,0.00014246,2]
[346486474,1735005051419,-931.0,0.00014246,2]
[346486475,1735005051429,-579.93,0.00014246,2]
[346486476,1735005051439,-745.69,0.00014246,2]
[346486477,1735005051449,-1407.32,0.00014246,2]
[346486478,1735005051457,-908.36,0.00014246,2]
[346486479,1735005051466,-500.0,0.00014246,2]
[346486480,1735005051477,-500.0,0.00014246,2]
[346486481,1735005051486,-691.73,0.00014246,2]
[346486482,1735005051496,-500.0,0.00014246,2]
[346486483,1735005051504,-682.61,0.00014246,2]
[346486484,1735005051514,-500.0,0.00014246,2]
[346486485,1735005051523,-1172.67,0.00014246,2]
[346486486,1735005051532,-500.0,0.00014246,2]
[346486487,1735005051542,-741.28,0.00014246,2]
[346486488,1735005051551,-794.62,0.00014246,2]
[346486489,1735005051560,-500.0,0.00014246,2]
[346486490,1735005051570,-517.58,0.00014246,2]
[346486491,1735005051580,-844.41,0.00014246,2]
[346486492,1735005051591,-500.0,0.00014246,2]
[346486493,1735005051604,-923.0,0.00014246,2]
[346486494,1735005051613,-695.3,0.00014246,2]
[346486495,1735005051622,-500.0,0.00014246,2]
[346486496,1735005051631,-500.0,0.00014246,2]
[346486497,1735005051642,-666.92,0.00014246,2]
[346486498,1735005051651,-520.63,0.00014246,2]
[346486499,1735005051660,-569.54,0.00014246,2]
[346486500,1735005051671,-653.23,0.00014246,2]
[346486501,1735005051681,-500.0,0.00014246,2]
[346486502,1735005051690,-500.0,0.00014246,2]
[346486503,1735005051699,-500.0,0.00014246,2]
[346486504,1735005051709,-1450.43,0.00014246,2]
[346486505,1735005051718,-577.62,0.00014246,2]
[346486506,1735005051728,-168.512735,0.00014246,2]
[346486507,1735005051738,-500.0,0.00014246,2]
[346486508,1735005051747,-911.31,0.00014246,2]
[346486509,1735005051756,-500.0,0.00014246,2]
[346486510,1735005051765,-500.0,0.00014246,2]
[346486511,1735005051775,-1135.03,0.00014246,2]
[346486512,1735005051784,-500.0,0.00014246,2]
[346486513,1735005051795,-551.6,0.00014246,2]
[346486514,1735005051805,-698.7,0.00014246,2]
[346486515,1735005051815,-500.0,0.00014246,2]
[346486516,1735005051825,-288.51067807,0.00014246,2]
[346486517,1735005051839,-216.09342259,0.00014246,2]
[346486518,1735005051848,-391.37260092,0.00014246,2]
[346486519,1735005052445,-4716.8462364,0.00013598,2]
[346486520,1735005053232,-283.1537636,0.00013598,2]
[346486521,1735005053242,-500.0,0.00013698,2]
[346486522,1735005053251,-578.0447294,0.00013698,2]
[346486523,1735005053259,-500.0,0.00013698,2]
[346486524,1735005053268,-500.0,0.00013698,2]
[346486525,1735005053277,-150.2,0.00013794,2]
[346486526,1735005053287,-151.0,0.00013971,2]
[346486527,1735005053296,-151.0,0.00013971,2]
[346486528,1735005053306,-500.0,0.00013972,2]
[346486529,1735005053315,-151.0,0.00013972,2]
[346486530,1735005053324,-151.0,0.00013972,2]
[346486531,1735005053333,-151.0,0.00013972,2]
[346486532,1735005053343,-500.0,0.00013972,2]
[346486533,1735005053352,-151.0,0.00013972,2]
[346486534,1735005053361,-151.0,0.00013972,2]
[346486535,1735005053370,-251.09492,0.00013972,2]
[346486536,1735005053379,-151.0,0.00014219,2]
[346486537,1735005053389,-223.97739908,0.00014246,2]
[346486538,1735005053400,-500.0,0.00014246,2]
[346486539,1735005053413,-758.8,0.00014246,2]
[346486540,1735005053425,-982.46,0.00014246,2]
[346486541,1735005053436,-500.0,0.00014246,2]
[346486542,1735005053447,-1155.49,0.00014246,2]
[346486543,1735005053457,-1572.16,0.00014246,2]
[346486544,1735005053469,-500.0,0.00014246,2]
[346486545,1735005053482,-500.0,0.00014246,2]
[346486546,1735005053493,-975.81,0.00014246,2]
[346486547,1735005053505,-500.0,0.00014246,2]
[346486548,1735005053517,-814.9,0.00014246,2]
[346486549,1735005053528,-506.75544902,0.00014246,2]
[346486550,1735005053540,-678.29,0.00014246,2]
[346486551,1735005053551,-500.0,0.00014246,2]
[346486552,1735005053562,-1288.73,0.00014246,2]
[346486553,1735005053573,-1097.16842303,0.00014246,2]
[346486554,1735005053587,-133.23157697,0.00014246,2]
[346486555,1735005053601,-506.61658985,0.00014246,2]
[346486556,1735005053613,-500.0,0.00014246,2]
[346486557,1735005053624,-1000.03,0.00014246,2]
[346486558,1735005053636,-500.0,0.00014246,2]
[346486559,1735005053649,-500.0,0.00014246,2]
[346486560,1735005053660,-393.0508991,0.00014246,2]
[346486561,1735005053694,-106.9491009,0.00014246,2]
[346486562,1735005053705,-669.53,0.00014246,2]
[346486563,1735005053717,-665.58,0.00014246,2]
[346486564,1735005053729,-992.64,0.00014246,2]
[346486565,1735005053741,-393.1108991,0.00014246,2]
[346486566,1735005053755,-271.6891009,0.00014246,2]
[346486567,1735005053766,-500.0,0.00014246,2]
[346486568,1735005053777,-336.56898521,0.00014246,2]
[346486569,1735005053791,-850.60846187,0.00014246,2]
[346486570,1735005053805,-143.89255292,0.00014246,2]
[346486571,1735005053817,-853.97,0.00014246,2]
[346486572,1735005053828,-500.0,0.00014246,2]
[346486573,1735005053839,-500.0,0.00014246,2]
[346486574,1735005053849,-967.72,0.00014246,2]
[346486575,1735005053859,-500.0,0.00014246,2]
[346486576,1735005053870,-576.77,0.00014246,2]
[346486577,1735005053880,-555.29,0.00014246,2]
[346486578,1735005053893,-560.38,0.00014246,2]
[346486579,1735005053906,-500.0,0.00014246,2]
[346486580,1735005053916,-546.23,0.00014246,2]
[346486581,1735005053926,-213.06,0.00014246,2]
[346486582,1735005053936,-500.0,0.00014246,2]
[346486583,1735005053946,-606.25,0.00014246,2]
[346486584,1735005053957,-666.0,0.00014246,2]
[346486585,1735005053969,-500.0,0.00014246,2]
[346486586,1735005053980,-500.0,0.00014246,2]
[346486587,1735005053991,-586.86,0.00014246,2]
[346486588,1735005054001,-761.52,0.00014246,2]
[346486589,1735005054011,-500.0,0.00014246,2]
[346486590,1735005054022,-779.8,0.00014246,2]
[346486591,1735005054037,-500.0,0.00014246,2]
[346486592,1735005054048,-759.57,0.00014246,2]
[346486593,1735005054058,-500.0,0.00014246,2]
[346486594,1735005054069,-500.0,0.00014246,2]
[346486595,1735005054079,-1039.65,0.00014246,2]
[346486596,1735005054090,-500.0,0.00014246,2]
[346486597,1735005054101,-767.76,0.00014246,2]
[346486598,1735005054111,-1492.35,0.00014246,2]
[346486599,1735005054122,-500.0,0.00014246,2]
[346486600,1735005054133,-500.0,0.00014246,2]
[346486601,1735005054144,-725.63,0.00014246,2]
[346486602,1735005054155,-1632.36,0.00014246,2]
[346486603,1735005054165,-587.81,0.00014246,2]
[346486604,1735005054176,-947.67,0.00014246,2]
[346486605,1735005054187,-500.0,0.00014246,2]
[346486606,1735005054198,-657.1,0.00014246,2]
[346486607,1735005054209,-500.0,0.00014246,2]
[346486608,1735005054219,-500.0,0.00014246,2]
[346486609,1735005054232,-500.0,0.00014246,2]
[346486610,1735005054243,-895.18,0.00014246,2]
[346486611,1735005054254,-545.54,0.00014246,2]
[346486612,1735005054265,-500.0,0.00014246,2]
[346486613,1735005054276,-500.0,0.00014246,2]
[346486614,1735005054286,-500.0,0.00014246,2]
[346486615,1735005054298,-500.0,0.00014246,2]
[346486616,1735005054309,-500.0,0.00014246,2]
[346486617,1735005054321,-603.39,0.00014246,2]
[346486618,1735005054332,-808.0,0.00014246,2]
[346486619,1735005054343,-686.83,0.00014246,2]
[346486620,1735005054354,-1217.78,0.00014246,2]
[346486621,1735005054365,-653.53,0.00014246,2]
[346486622,1735005054375,-500.0,0.00014246,2]
[346486623,1735005054386,-806.87,0.00014246,2]
[346486624,1735005054397,-747.9,0.00014246,2]
[346486625,1735005054408,-571.37,0.00014246,2]
[346486626,1735005054419,-503.13446298,0.00014246,2]
[346486627,1735005054429,-500.0,0.00014246,2]
[346486628,1735005054440,-821.17,0.00014246,2]
[346486629,1735005054451,-999.71,0.00014246,2]
[346486630,1735005054461,-500.0,0.00014246,2]
[346486631,1735005054472,-1049.39,0.00014246,2]
[346486632,1735005054485,-602.93290213,0.00014246,2]
[346486633,1735005054496,-1906.15,0.00014246,2]
[346486634,1735005054508,-877.8,0.00014246,2]
[346486635,1735005054519,-622.43,0.00014246,2]
[346486636,1735005054530,-502.76160327,0.00014246,2]
[346486637,1735005054542,-537.09746273,0.00014246,2]
[346486638,1735005054553,-550.34,0.00014246,2]
[346486639,1735005054565,-640.59,0.00014246,2]
[346486640,1735005054576,-500.0,0.00014246,2]
[346486641,1735005054587,-500.0,0.00014246,2]
[346486642,1735005054602,-627.48,0.00014246,2]
[346486643,1735005054612,-829.08,0.00014246,2]
[346486644,1735005054623,-500.0,0.00014246,2]
[346486645,1735005054636,-500.0,0.00014246,2]
[346486646,1735005054647,-1467.14,0.00014246,2]
[346486647,1735005054658,-1333.38,0.00014246,2]
[346486648,1735005054670,-500.0,0.00014246,2]
[346486649,1735005054682,-500.0,0.00014246,2]
[346486650,1735005054693,-1246.03,0.00014246,2]
[346486651,1735005054703,-1401.49,0.00014246,2]
[346486652,1735005054714,-635.56,0.00014246,2]
[346486653,1735005054724,-510.61,0.00014246,2]
[346486654,1735005054736,-500.0,0.00014246,2]
[346486655,1735005054747,-500.0,0.00014246,2]
[346486656,1735005054759,-500.0,0.00014246,2]
[346486657,1735005054769,-500.0,0.00014246,2]
[346486658,1735005054780,-500.0,0.00014246,2]
[346486659,1735005054791,-701.58,0.00014246,2]
[346486660,1735005054801,-7930.82,0.00014246,2]
[346486661,1735005054811,-500.0,0.00014246,2]
[346486662,1735005054821,-7070.574518,0.00014246,2]
[346486663,1735005054832,-500.0,0.00014246,2]
[346486664,1735005054842,-2087.04,0.00014246,2]
[346486665,1735005054852,-678.76,0.00014246,2]
[346486666,1735005054863,-500.0,0.00014246,2]
[346486667,1735005054873,-500.0,0.00014246,2]
[346486668,1735005054883,-500.0,0.00014246,2]
[346486669,1735005054894,-7331.590302,0.00014246,2]
[346486670,1735005054904,-500.0,0.00014246,2]
[346486671,1735005054916,-500.0,0.00014246,2]
[346486672,1735005054927,-500.0,0.00014246,2]
[346486673,1735005054937,-1546.96,0.00014246,2]
[346486674,1735005054948,-500.0,0.00014246,2]
[346486675,1735005054959,-1041.94,0.00014246,2]
[346486676,1735005054969,-1709.72,0.00014246,2]
[346486677,1735005054981,-804.78,0.00014246,2]
[346486678,1735005054991,-668.4,0.00014246,2]
[346486679,1735005055002,-500.0,0.00014246,2]
[346486680,1735005055013,-3469.16,0.00014246,2]
[346486681,1735005055023,-2738.29,0.00014246,2]
[346486682,1735005055034,-500.0,0.00014246,2]
[346486683,1735005055045,-500.0,0.00014246,2]
[346486684,1735005055055,-500.0,0.00014246,2]
[346486685,1735005055066,-3816.71,0.00014246,2]
[346486686,1735005055076,-5074.14,0.00014246,2]
[346486687,1735005055087,-1092.78,0.00014246,2]
[346486688,1735005055098,-848.39,0.00014246,2]
[346486689,1735005055108,-500.0,0.00014246,2]
[346486690,1735005055119,-1114.73,0.00014246,2]
[346486691,1735005055129,-607.64,0.00014246,2]
[346486692,1735005055140,-696.24,0.00014246,2]
[346486693,1735005055151,-5433.97,0.00014246,2]
[346486694,1735005055161,-1642.69,0.00014246,2]
[346486695,1735005055172,-500.0,0.00014246,2]
[346486696,1735005055182,-1378.86,0.00014246,2]
[346486697,1735005055192,-659.07,0.00014246,2]
[346486698,1735005055202,-4674.42,0.00014246,2]
[346486699,1735005055212,-500.0,0.00014246,2]
[346486700,1735005055222,-500.0,0.00014246,2]
[346486701,1735005055233,-500.0,0.00014246,2]
[346486702,1735005055244,-933.15,0.00014246,2]
[346486703,1735005055254,-500.0,0.00014246,2]
[346486704,1735005055264,-500.0,0.00014246,2]
[346486705,1735005055275,-500.0,0.00014246,2]
[346486706,1735005055285,-2979.44,0.00014246,2]
[346486707,1735005055295,-913.79,0.00014246,2]
[346486708,1735005055305,-695.35,0.00014246,2]
[346486709,1735005055316,-612.5,0.00014246,2]
[346486710,1735005055326,-500.0,0.00014246,2]
[346486711,1735005055336,-500.0,0.00014246,2]
[346486712,1735005055347,-1278.65,0.00014246,2]
[346486713,1735005055358,-669.49,0.00014246,2]
[346486714,1735005055368,-1389.88,0.00014246,2]
[346486715,1735005055378,-500.0,0.00014246,2]
[346486716,1735005055389,-500.0,0.00014246,2]
[346486717,1735005055399,-500.0,0.00014246,2]
[346486718,1735005055410,-500.0,0.00014246,2]
[346486719,1735005055421,-784.44,0.00014246,2]
[346486720,1735005055432,-585.56,0.00014246,2]
[346486721,1735005055442,-1193.83,0.00014246,2]
[346486722,1735005055453,-2714.86,0.00014246,2]
[346486723,1735005055464,-1370.31,0.00014246,2]
[346486724,1735005055474,-1153.2,0.00014246,2]
[346486725,1735005055485,-5291.92,0.00014246,2]
[346486726,1735005055496,-500.0,0.00014246,2]
[346486727,1735005055507,-553.18,0.00014246,2]
[346486728,1735005055518,-1227.36,0.00014246,2]
[346486729,1735005055528,-2448.17,0.00014246,2]
[346486730,1735005055539,-1405.68,0.00014246,2]
[346486731,1735005055549,-811.82,0.00014246,2]
[346486732,1735005055560,-500.0,0.00014246,2]
[346486733,1735005055571,-585.81,0.00014246,2]
[346486734,1735005055582,-4892.64,0.00014246,2]
[346486735,1735005055594,-500.0,0.00014246,2]
[346486736,1735005055605,-597.78,0.00014246,2]
[346486737,1735005055615,-579.66,0.00014246,2]
[346486738,1735005055626,-2485.29,0.00014246,2]
[346486739,1735005055639,-500.0,0.00014246,2]
[346486740,1735005055649,-500.0,0.00014246,2]
[346486741,1735005055659,-500.0,0.00014246,2]
[346486742,1735005055671,-500.0,0.00014246,2]
[346486743,1735005055682,-530.34,0.00014246,2]
[346486744,1735005055692,-500.0,0.00014246,2]
[346486745,1735005055703,-877.29,0.00014246,2]
[346486746,1735005055713,-500.0,0.00014246,2]
[346486747,1735005055724,-729.91,0.00014246,2]
[346486748,1735005055736,-500.0,0.00014246,2]
[346486749,1735005055747,-500.0,0.00014246,2]
[346486750,1735005055758,-3934.87,0.00014246,2]
[346486751,1735005055769,-1139.75,0.00014246,2]
[346486752,1735005055780,-688.23,0.00014246,2]
[346486753,1735005055790,-1052.51,0.00014246,2]
[346486754,1735005055801,-500.0,0.00014246,2]
[346486755,1735005055812,-1908.23,0.00014246,2]
[346486756,1735005055822,-1115.06440383,0.00014246,2]
[346486757,1735005165254,20000.0,0.00012,2]
[346486759,1735005410548,246.31,0.00016658,30]
[346486762,1735005767321,663.07,0.00010908,2]
[346486765,1735006035518,177.2,0.00010137,2]
[346486777,1735006232369,-606.97773677,0.0001267,2]
[346486782,1735006232589,-4976.05226323,0.0001267,2]
[346486783,1735006232599,-993.45,0.00012717,2]
[346486784,1735006232610,-475.93,0.00012803,2]
[346486785,1735006232620,-300.0,0.00012849,2]
[346486786,1735006232629,-22402.5,0.0001285,2]
[346486787,1735006232640,-1352.02,0.00012851,2]
[346486788,1735006232649,-167.54,0.00012979,2]
[346486789,1735006232659,-30782.96,0.00012984,2]
[346486790,1735006232669,-450.0,0.00013,2]
[346486791,1735006232679,-3172.15532874,0.00013,2]
[346486792,1735006232688,-174.5,0.00013022,2]
[346486793,1735006232698,-23900.0,0.00013071,2]
[346486794,1735006232709,-250.0,0.00013098,2]
[346486795,1735006232718,-663.07,0.00013172,2]
[346486796,1735006232728,-250.0,0.00013311,2]
[346486797,1735006232739,-163.3,0.00013387,2]
[346486798,1735006232748,-436.42,0.00013478,2]
[346486799,1735006232758,-667.575,0.0001354,2]
[346486800,1735006232768,-168.67,0.00013543,2]
[346486801,1735006232777,-679.133,0.00013543,2]
[346486802,1735006232788,-3888.0,0.00013543,2]
[346486803,1735006232798,-150.0,0.00013543,2]
[346486804,1735006232807,-4294.36663195,0.00013598,2]
[346486805,1735006232820,-1069.00829095,0.00013598,2]
[346486806,1735006232894,-964.00309874,0.00013598,2]
[346486807,1735006232904,-291.24284708,0.00013598,2]
[346486808,1735006232914,-629.99406694,0.00013598,2]
[346486809,1735006232926,-4941.82853306,0.00013598,2]
[346486810,1735006232936,-1196.6792,0.00013598,2]
[346486811,1735006232946,-200.0,0.000136,4]
[346486812,1735006232956,-170.37,0.00013611,2]
[346486813,1735006232966,-271.4426073,0.00013688,2]
[346486814,1735006232976,-1005.72097536,0.00013697,2]
[346486815,1735006232986,-500.0,0.00013698,2]
[346486816,1735006232996,-162.24975843,0.00013698,2]
[346486817,1735006233005,-500.0,0.00013698,2]
[346486818,1735006233015,-503.67777609,0.00013698,2]
[346486819,1735006233025,-500.0,0.00013698,2]
[346486820,1735006233034,-500.0,0.00013698,2]
[346486821,1735006233045,-500.0,0.00013698,2]
[346486822,1735006233054,-500.0,0.00013698,2]
[346486823,1735006233064,-647.65725278,0.00013698,2]
[346486824,1735006233075,-503.11887291,0.00013698,2]
[346486825,1735006233089,-503.46770688,0.00013698,2]
[346486826,1735006233099,-500.0,0.00013698,2]
[346486827,1735006233110,-501.59682196,0.00013698,2]
[346486828,1735006233120,-500.0,0.00013698,2]
[346486829,1735006233130,-501.63446614,0.00013698,2]
[346486830,1735006233140,-501.93025908,0.00013698,2]
[346486831,1735006233150,-500.0,0.00013698,2]
[346486832,1735006233162,-501.4904282,0.00013698,2]
[346486833,1735006233173,-511.15,0.00013698,2]
[346486834,1735006233184,-500.0,0.00013698,2]
[346486835,1735006233194,-500.0,0.00013698,2]
[346486836,1735006233204,-500.0,0.00013698,2]
[346486837,1735006233215,-678.62,0.00013698,2]
[346486838,1735006233226,-680.460955,0.00013698,2]
[346486839,1735006233236,-672.096431,0.00013698,2]
[346486840,1735006233246,-500.0,0.00013698,2]
[346486841,1735006233257,-500.0,0.00013698,2]
[346486842,1735006233268,-500.0,0.00013698,2]
[346486843,1735006233278,-500.0,0.00013698,2]
[346486844,1735006233288,-500.0,0.00013698,2]
[346486845,1735006233298,-500.0,0.00013698,2]
[346486846,1735006233309,-341.47635944,0.00013698,2]
[346486847,1735006233322,-165.96364056,0.00013698,2]
[346486848,1735006233332,-500.0,0.00013698,2]
[346486849,1735006233343,-500.0,0.00013698,2]
[346486850,1735006233353,-835.86,0.00013698,2]
[346486851,1735006233363,-504.68951031,0.00013698,2]
[346486852,1735006233373,-500.0,0.00013698,2]
[346486853,1735006233383,-500.0,0.00013698,2]
[346486854,1735006233393,-533.87,0.00013698,2]
[346486855,1735006233403,-736.96,0.00013698,2]
[346486856,1735006233412,-592.22972221,0.00013698,2]
[346486857,1735006233423,-503.46184665,0.00013698,2]
[346486858,1735006233433,-500.0,0.00013698,2]
[346486859,1735006233443,-500.0,0.00013698,2]
[346486860,1735006233454,-571.09,0.00013698,2]
[346486861,1735006233465,-503.37634026,0.00013698,2]
[346486862,1735006233475,-500.0,0.00013698,2]
[346486863,1735006233485,-500.0,0.00013698,2]
[346486864,1735006233495,-646.93,0.00013698,2]
[346486865,1735006233505,-500.0,0.00013698,2]
[346486866,1735006233515,-505.42,0.00013698,2]
[346486867,1735006233525,-500.0,0.00013698,2]
[346486868,1735006233535,-500.0,0.00013698,2]
[346486869,1735006233545,-500.0,0.00013698,2]
[346486870,1735006233555,-500.0,0.00013698,2]
[346486871,1735006233859,-500.0,0.00013698,2]
[346486872,1735006233869,-261.69829873,0.00013698,2]
[346486873,1735006233879,-500.0,0.00013698,2]
[346486874,1735006233889,-500.0,0.00013698,2]
[346486875,1735006233899,-500.0,0.00013698,2]
[346486876,1735006233908,-500.0,0.00013698,2]
[346486877,1735006233918,-500.0,0.00013698,2]
[346486878,1735006233928,-604.98,0.00013698,2]
[346486879,1735006233938,-500.0,0.00013698,2]
[346486880,1735006233948,-500.0,0.00013698,2]
[346486881,1735006233958,-2647.852,0.00013698,2]
[346486882,1735006233969,-154.457,0.00013698,2]